Cogmind - Beta 14 @@@ ROGUE MODE // 2024.12.15 @ 20:21:38 Player: sercli123 Result: Destroyed by 6Z-AG4(R) with Subdweller Shrapnel Launcher Performance ------------- Evolutions (0) 0 Regions Visited (3) 600 Robots Destroyed (5) 25 Value Destroyed (122) 122 Prototype IDs (3) 60 Alien Tech Used (0) 0 Bonus (0) 0 TOTAL SCORE: 807 Bonus ------- None Cogmind --------- Core Integrity 0/250 Matter 190/300 Energy 99/100 System Corruption 0% Temperature Cool (0) Movement Core (50) Location -10/Subcaves Parts ------- > --- POWER (1) -------- (None) > --- PROPULSION (2) --- (None) > --- UTILITY (2) ------ (None) > --- WEAPON (2) ------- (None) > --- INVENTORY (5) ---- Subdweller Monowheel Improved Flight Unit Terrain Scanner Scrap Shield Peak State ------------ > --- POWER ------------ Light Nuclear Core > --- PROPULSION ------- Improved Flight Unit Improved Flight Unit > --- UTILITY ---------- Small Storage Unit Light Armor Plating > --- WEAPON ----------- Assault Rifle Subdweller Machine Gun > --- INVENTORY -------- Subdweller Monowheel Improved Flight Unit Terrain Scanner Scrap Shield Mining Laser [Rating: 15] Favorites ----------- Power Light Ion Engine Engine Light Ion Engine Power Core Light Nuclear Core Propulsion Improved Flight Unit Leg Aluminum Leg Wheel Subdweller Monowheel Flight Unit Improved Flight Unit Utility Small Storage Unit Device Terrain Scanner Storage Small Storage Unit Protection Light Armor Plating Weapon Assault Rifle Energy Gun Medium Laser Ballistic Gun Assault Rifle Special Weapon Mining Laser Build | -11 -10 -10 -10 ------- Run | Yrd Mat Min Sub Slots Evolved . | . . . . Power . | . . . . Propulsion . | . . . . Utility . | . . . . Weapon . | . . . . Parts Attached 35 | 3 5 20 7 Power 4 | 1 . 2 1 Engine 2 | 1 . 1 . Core 2 | . . 1 1 Reactor . | . . . . Propulsion 6 | 2 2 . 2 Treads . | . . . . Leg 1 | 1 . . . Wheel 2 | 1 . . 1 Hover . | . . . . Flight 3 | . 2 . 1 Utility 7 | . 2 4 1 Device 3 | . 1 2 . Storage 1 | . 1 . . Processor . | . . . . Hackware . | . . . . Protection 3 | . . 2 1 Artifact . | . . . . Weapon 18 | . 1 14 3 Energy Gun 7 | . . 7 . Energy Cannon . | . . . . Ballistic Gun 9 | . 1 5 3 Ballistic Cannon . | . . . . Launcher . | . . . . Special Weapon 2 | . . 2 . Impact Weapon . | . . . . Slashing Weapon . | . . . . Piercing Weapon . | . . . . Special Melee Weapon . | . . . . Unidentified Prototypes 1 | . 1 . . Parts Lost 2 | . . . 2 Power 1 | . . . 1 Propulsion . | . . . . Utility 1 | . . . 1 Weapon . | . . . . Highest Loss Streak 1 | . . . 1 To Critical Strikes . | . . . . Average Slot Usage (%) 83 | . 64 85 83 Engine 11 | . 14 10 11 Core 2 | . . 3 . Wheel 2 | . 3 . 10 Flight 24 | . 21 28 17 Device 7 | . 4 10 . Storage 13 | . 10 14 14 Energy Gun 5 | . . 8 . Ballistic Gun 12 | . 6 8 26 Peak Build Rating 15 | 3 10 14 15 Average Rating 10 | 1 8 10 10 On Entrance 6 | . 3 10 11 Naked Turns 2 | . . . 2 Heaviest Build 17 | 3 10 17 14 Greatest Support 20 | 10 10 10 20 Greatest Overweight (x) 1 | . . 1 1 Average Overweight (x) . | . . . . Largest Inventory Capacity 8 | 5 8 8 8 Average Capacity 7 | 5 7 8 7 Most Carried 8 | 5 8 8 8 Average Carried 6 | 2 5 6 7 Final Capacity 8 | 5 8 8 5 Final Carried 7 | 4 7 7 5 Class Distribution -------------------- 100% | Mutant Dominant Class ---------------- Mutant | -10/Materials Mutant | -10/Mines Mutant | -10/Subcaves Resources | -11 -10 -10 -10 ----------- Run | Yrd Mat Min Sub Matter Collected 583 | 207 . 249 127 Remotely . | . . . . Salvage Created 158 | . . 107 51 Parts 16 | . . 13 3 Haulers Intercepted . | . . . . Recyclers Shooed . | . . . . Parts Field Recycled . | . . . . Retrieved Matter . | . . . . Parts Self-Destructed 5 | . . . 5 Prevented . | . . . . Kills | -11 -10 -10 -10 ------- Run | Yrd Mat Min Sub Combat Hostiles Destroyed 3 | . . 2 1 Guns 3 | . . 2 1 Classes Destroyed 3 | . . 2 1 Tunneler 2 | . . 2 . Grunt 2 | . . 2 . Subdweller 1 | . . . 1 Best Kill Streak 2 | . . 2 1 Combat Bots Only 1 | . . 1 1 Max Kills in Single Turn 1 | . . 1 1 Gunslinging . | . . . . Exploded . | . . . . Melee . | . . . . Uniques/NPCs Destroyed . | . . . . Combat | -11 -10 -10 -10 -------- Run | Yrd Mat Min Sub Hostile Shots Fired 32 | . . 17 15 Missed 11 | . . 5 6 Damage Taken 463 | . . 133 330 Core 251 | . . 58 193 Absorbed by Shields . | . . . . Core Remaining (%) 100 | 100 . . . Volleys Fired 69 | . . 57 12 Largest 2 | . . 2 2 Hottest 100 | . . 100 50 Shots Fired 111 | . . 90 21 Gun 109 | . . 88 21 Cannon . | . . . . Launcher . | . . . . Special 2 | . . 2 . Kinetic 54 | . . 33 21 Thermal 57 | . . 57 . Explosive . | . . . . Electromagnetic . | . . . . Robot Hit Streak 8 | . . 6 8 Robot Miss Streak 4 | . . 4 1 Penetration Max . | . . . . Secondary Targets . | . . . . Shots Hit Robots 33 | . . 16 17 Core Hits 10 | . . 6 4 Critical Kills . | . . . . Critical Parts Destroyed . | . . . . Critical Strikes . | . . . . Melee Attacks . | . . . . Impact . | . . . . Slashing . | . . . . Piercing . | . . . . Sneak Attacks . | . . . . Combat Hostiles . | . . . . Follow-up Attacks . | . . . . Damage Inflicted 424 | . . 206 218 Guns 424 | . . 206 218 Cannons . | . . . . Explosions . | . . . . Melee . | . . . . Ramming . | . . . . Kinetic 324 | . . 106 218 Thermal 100 | . . 100 . Explosive . | . . . . Electromagnetic . | . . . . Impact . | . . . . Slashing . | . . . . Piercing . | . . . . Highest Corruption . | . . . . Average Corruption . | . . . . Corruption Purged . | . . . . Corruption Blocked . | . . . . Overload Shots . | . . . . Overflow Damage . | . . . . Projectiles . | . . . . Explosions . | . . . . Melee . | . . . . Knockbacks . | . . . . Impact . | . . . . Kinetic . | . . . . Secondary . | . . . . Self-Inflicted Damage . | . . . . Shots . | . . . . Rammed . | . . . . Targets Rammed . | . . . . Kicked . | . . . . Crushed . | . . . . Highest Temperature 256 | . . 256 . Average Temperature 75 | . . 75 . Received Heat Transfer 87 | . . 75 12 Siege Activations . | . . . . Robots Corrupted . | . . . . Combat Hostiles . | . . . . Parts Fried . | . . . . Impact Corruptions . | . . . . Robots Melted . | . . . . Combat Hostiles . | . . . . Parts Melted . | . . . . Heat Transferred 296 | . . 296 . Parts Sabotaged . | . . . . Parts Stolen . | . . . . Parts Stripped . | . . . . Power Chain Reactions . | . . . . Alert | -11 -10 -10 -10 ------- Run | Yrd Mat Min Sub Peak Influence 65 | . . 65 . Initial . | . . . . Average 10 | . . 12 . Maximum Alert Level . | . . . . Low Security (%) 100 | 100 100 100 . Level 1 . | . . . . Level 2 . | . . . . Level 3 . | . . . . Level 4 . | . . . . Level 5 . | . . . . High Security . | . . . . Max Security . | . . . . Squads Dispatched . | . . . . Investigation . | . . . . Extermination . | . . . . Reinforcement . | . . . . Assault . | . . . . Garrison . | . . . . Intercept . | . . . . Searches Triggered . | . . . . Construction Impeded . | . . . . Haulers Reinforced . | . . . . Active Scanning Responses . | . . . . Cargo Convoy Interrupts . | . . . . Stealth | -11 -10 -10 -10 --------- Run | Yrd Mat Min Sub Distress Signals . | . . . . Communications Jammed . | . . . . Distress Signals . | . . . . Times Spotted 17 | . 1 7 9 Peak Tracking Total 4 | . 2 3 4 Tactical Retreats 1 | . . 1 . Traps | -11 -10 -10 -10 ------- Run | Yrd Mat Min Sub Traps Triggered . | . . . . Indirectly . | . . . . Trap Hack Attempts . | . . . . Triggered . | . . . . Disarmed . | . . . . Reprogrammed . | . . . . Reused . | . . . . Traps Extracted . | . . . . Installed . | . . . . Triggered . | . . . . Machines | -11 -10 -10 -10 ---------- Run | Yrd Mat Min Sub Machines Disabled . | . . . . Max in Single Turn . | . . . . Machines Repaired . | . . . . Machines Dismantled . | . . . . Machines Sabotaged . | . . . . Overloaded Fab Kills . | . . . . Hacking | -11 -10 -10 -10 --------- Run | Yrd Mat Min Sub Machines Accessed 1 | . 1 . . Terminals 1 | . 1 . . Fabricators . | . . . . Repair Stations . | . . . . Recycling Units . | . . . . Scanalyzers . | . . . . Garrison Access . | . . . . Total Hacks 2 | . 2 . . Successful 2 | . 2 . . Failed . | . . . . Catastrophic . | . . . . Database Lockouts . | . . . . Manual . | . . . . Terminals 2 | . 2 . . Fabricators . | . . . . Repair Stations . | . . . . Recycling Units . | . . . . Scanalyzers . | . . . . Garrison Access . | . . . . Terminal Hacks 2 | . 2 . . Prototype ID Bank 1 | . 1 . . Zone Layout 1 | . 1 . . Fabricator Hacks . | . . . . Repair Station Hacks . | . . . . Recycling Unit Hacks . | . . . . Scanalyzer . | . . . . Garrison Access Hacks . | . . . . Unauthorized Hacks . | . . . . Terminals . | . . . . Fabricators . | . . . . Repair Stations . | . . . . Recycling Units . | . . . . Scanalyzers . | . . . . Garrison Access . | . . . . Data Cores Recovered . | . . . . Used . | . . . . Hacking Detections 1 | . 1 . . Full Trace Events . | . . . . Feedback Events . | . . . . Feedback Blocked . | . . . . Robot Schematics Acquired . | . . . . Robots Built . | . . . . Authchips . | . . . . Time . | . . . . Total Robot Build Rating . | . . . . Part Schematics Acquired . | . . . . Parts Built . | . . . . Authchips . | . . . . Time . | . . . . Total Part Build Rating . | . . . . Parts Repaired . | . . . . Time . | . . . . Parts Recycled . | . . . . Recycled Matter . | . . . . Retrieved Matter . | . . . . Retrieved Components . | . . . . Parts Scanalyzed . | . . . . Part Schematics Acquired . | . . . . Parts Damaged . | . . . . Bothacking | -11 -10 -10 -10 ------------ Run | Yrd Mat Min Sub Used RIF Installer . | . . . . Robots Hacked . | . . . . Non-combat . | . . . . Combat . | . . . . Robot Hacks Applied . | . . . . Relay Couplers Released . | . . . . Fabnet Peak Effective % . | . . . . Robots Rewired . | . . . . Allies Hacked . | . . . . Hacks Repelled . | . . . . Allies | -11 -10 -10 -10 -------- Run | Yrd Mat Min Sub Total Allies . | . . . . Largest Group . | . . . . Highest-Rated Group . | . . . . Highest-Rated Ally . | . . . . Total Orders . | . . . . Ally Attacks . | . . . . Total Damage . | . . . . Kills . | . . . . Allies Corrupted . | . . . . Allies Melted . | . . . . Intel | -11 -10 -10 -10 ------- Run | Yrd Mat Min Sub Robot Analysis Total . | . . . . Derelict Logs Recovered 1 | . . 1 . Drone Launches . | . . . . Drone Recoveries . | . . . . Exploration | -11 -10 -10 -10 ------------- Run | Yrd Mat Min Sub Turns Passed 958 | 34 92 598 234 Spaces Moved 970 | 40 204 548 178 Core 62 | 27 31 . 4 Treads . | . . . . Legs . | . . . . Wheels 156 | 13 . . 143 Hover . | . . . . Flight 752 | . 173 548 31 Fastest Speed 37 | 50 37 37 37 Average Speed 49 | 59 39 37 97 Slowest Speed 110 | 80 50 107 110 Overloaded Moves . | . . . . Propulsion Burnouts . | . . . . Robots Hopped 3 | . . 3 . Cave-ins Triggered . | . . . . Exploration Rate (%) 30 | 3 38 67 12 Regions Visited 3 Branch Regions 2 Pre-discovered Areas 1 | . . 1 . Known Exits Taken 1 | . . 1 . Unknown Exits Taken 2 | 1 1 . . Scrap Searched 1 | . . 1 . Spaces Dug . | . . . . Terrain Destroyed . | . . . . Melee . | . . . . Projectile . | . . . . AOE . | . . . . Terrain Rammed . | . . . . Walls Destroyed . | . . . . Machines Disabled . | . . . . Actions | -11 -10 -10 -10 --------- Run | Yrd Mat Min Sub Total 1331 | 49 215 848 219 Wait 216 | . . 202 14 Move 961 | 39 203 541 178 Hop 3 | . . 3 . Pick Up 18 | 7 5 4 2 Fast Attach 6 | . 1 3 2 Attach 22 | 3 3 13 3 Detach 18 | . 1 15 2 Swap 7 | . 1 4 2 Drop 11 | . 1 6 4 Fire 69 | . . 57 12 Melee . | . . . . Ram . | . . . . Kick . | . . . . Crush . | . . . . Escape Stasis . | . . . . Rewire . | . . . . Trap . | . . . . Miscellaneous . | . . . . Route ------- -11/Scrapyard -10/Materials (discovered 2 exits: [*Mat] / [*Min]) -10/Mines (discovered 2 exits: [*Mat] / *Sub) -10/Subcaves History --------- Turn | Location | Event 10 | -11/Scrapyard | Discovered new exit (range 15) 35 | -11/Scrapyard | Entered Materials 78 | -10/Materials | Discovered new exit (range 15) 119 | -10/Materials | Discovered new exit (range 15) 127 | -10/Materials | Entered Mines 136 | -10/Mines | Excavation squad dispatched 136 | -10/Mines | A large section of the Mines collapsed 316 | -10/Mines | Build established: Mutant 386 | -10/Mines | Excavation squad dispatched 506 | -10/Mines | Learned location of Storage (-9) 513 | -10/Mines | Discovered new exit (range 11) 566 | -10/Mines | Identified exit to Subcaves 725 | -10/Mines | Entered Subcaves 776 | -10/Subcaves | A swath of the cavern ceiling suddenly collapsed 905 | -10/Subcaves | Ambushed by swarm of Subdwellers 949 | -10/Subcaves | Core integrity fell below 50% 956 | -10/Subcaves | Lost 3 allies 957 | -10/Subcaves | Released all parts (6) 959 | -10/Subcaves | Destroyed by 6Z-AG4(R) with Subdweller Shrapnel Launcher Last Messages --------------- 00938_ HV Slug penetrates Wall. 00943_ GB-714(R) affixes Scrap Shield Fragment to Scrap Shield. 00944_ GB-714(R) suffers critical hit (Destroy). 00944_ GB-714(R) knocked back. 00944_ GB-714(R) destroyed. 00946_ HV Slug penetrates L6-NTY(R). 00946_ HV Slug penetrates Wall. 00947_ L6-NTY(R) affixes Scrap Shield Fragment to Scrap Shield. 00952_ L6-NTY(R) destroyed. 00955_ HV Slug penetrates Wall. 00955_ HV Slug penetrates Twisted Machinery. 00957_ Lgt. Armor Plating destroyed. 00957_ Released Imp. Flight Unit. 00957_ Released Sub. Machine Gun. 00957_ Released Assault Rifle. 00957_ Released Imp. Flight Unit. 00957_ Released Sml. Storage Unit. 00957_ Released Lgt. Nuclear Core. 00958_ HV Slug penetrates Wall. 00958_ HV Slug penetrates Twisted Machinery. Map ----- +----------------------------------------------------+ | ?????????????????????????????????????????????????? | | ?????????????????????????????????????????????????? | | ?????????????????????????????????????????????????? | | ?????????????????????????????????????????????????? | | ?????????????????????????????????????????????????? | | ?????????????????????????????????????????????????? | | ?????????????????????????????????????????????????? | | ????????????????###??????????????????????????????? | | ????????????????# ??????????????????????????????? | | ???????????????? ""#????????????????????????????? | | ???????????????#" """#???????????????????????????? | | ???????????????#"" +???????????????????????????? | | ???????????????#" "????????????????????????????? | | ???????????????# ""#????????????????????????????? | | ???????????????#""""###??????????????????????????? | | ???????????????#"""" #;####??????????????????????? | | ????????????????# # & #??????????????????????? | | ????????????????#< % ! ######?????????????????? | | ????????????????## ""##[ =;;;; ##????????????????? | | ????? ?????????### ;"#*h% #????????????????? | | ??? #??????## ###"R%[ *[| ;##???????????????? | | ?? #????# =%%%!%!&== ##??????????????? | | ??# ##### %##[; [[! ##?????????????? | | ???# ##?## ##????????????? | | ????# ### #; #????????????? | | ????##### [ @ #????????????? | | ????????## ###;# %##????????????? | | ?????????## ;;#??## ###?????????????? | | ??????????##### ##??????##???????????????? | | ???????#####??# ##????????????????????????? | | ??????## ??# ###?????????????????????????? | | ????? ? ?##O #???????????????????????????? | | ???? ?? #?# #???????????????????????????? | | ???# ??# ## #???????????????????????????? | | ?? ## ##?###??????????????????????? | | ?? ## ##?????????????????????? | | ?? #?????????????????????? | | ?? #?????????????????????? | | ?? ## #?????????????????????? | | ?? ### ## ##?????????????????????? | | ??? ##??## ##??????????????????????? | | ???? ??????#### ##???????????????????????? | | ???? ??????????## ##???????????????????????? | | ??????????????????## #???????????????????????? | | ???????????????????# ##??????????????????????? | | ???????????????????## ##?????????????????????? | | ????????????????????##### #?????????????????????? | | ????????????????????????# #?????????????????????? | | ????????????????????????# #?????????????????????? | | ????????????????????????# #?????????????????????? | +----------------------------------------------------+ Best States ------------- Heat Dissipation 25 Energy Generation 14 Energy Capacity 160 Matter Stores 277 Matter Capacity 300 Sight Range 16 Terrain Scan Range 14 Terrain Scan Density 10 Armor Coverage 150 Evasion (%) 62 Item Schematics ----------------- None Robot Schematics ------------------ None Fabricated ------------ Nothing Alien Tech Used ----------------- None Achievements -------------- None Challenges ------------ None Game ------ Seed CloakSapperKinecellerator Manual? 0 Play Time 00:29:25 Cumulative 57.4 hours Start 2024.12.15 @ 19:50:37 End 2024.12.15 @ 20:21:38 Sessions 1 Manual Loads 0 Difficulty Rogue Special Mode None Game No. 27 Rogue 27 Adventurer 0 Explorer 0 Win Type - Total 0 Types 0/0/0/0/0/0/0/0/0 Lore% 20 Gallery% 33 Achievement% 30 Wizard Run 0 Options --------- Layout 0 ASCII 0 Keyboard 0 Movement Mouse Keybinds 0 Fullscreen 2 Font 24/Smallcaps Map View 38x25 Zoom Use 11% Tactical HUD 1 Map Filters NONE Filters NONE Steam 1 RUN: 6c4c083b-5205-4edc-8e3d-2ef2bfaa488f